[Event "Titled Tuesday Blitz October 31 Late 2023"]
[White "Yoo, Christopher Woojin"]
[Black "Krallis, Christos"]
[WhiteFideId "30909694"]
[BlackFideId "4298896"]
[WhiteElo "3014"]
[BlackElo "2717"]
[Result "0-1"]
[Round "3"]
[TimeControl "180+1"]
[Date "2023.10.31"]
[WhiteClock "0:00:01"]
[BlackClock "0:00:04"]
[Board "7"]

1. Nf3 {[%clk 0:03:00]}  Nf6 {[%clk 0:02:57]} 2. c4 {[%clk 0:02:59]}  c5 {[%clk 0:02:53]} 3. Nc3 {[%clk 0:02:53]}  Nc6 {[%clk 0:02:52]} 4. g3 {[%clk 0:02:52]}  g6 {[%clk 0:02:49]} 5. Bg2 {[%clk 0:02:50]}  Bg7 {[%clk 0:02:49]} 6. O-O {[%clk 0:02:50]}  O-O {[%clk 0:02:47]} 7. d3 {[%clk 0:02:49]}  d6 {[%clk 0:02:46]} 8. Rb1 {[%clk 0:02:43]}  Rb8 {[%clk 0:02:37]} 9. a3 {[%clk 0:02:43]}  a6 {[%clk 0:02:38]} 10. b4 {[%clk 0:02:41]}  cxb4 {[%clk 0:02:38]} 11. axb4 {[%clk 0:02:42]}  b5 {[%clk 0:02:38]} 12. cxb5 {[%clk 0:02:42]}  axb5 {[%clk 0:02:38]} 13. Bd2 {[%clk 0:02:41]}  Bd7 {[%clk 0:02:09]} 14. h3 {[%clk 0:02:32]}  d5 {[%clk 0:02:06]} 15. Bg5 {[%clk 0:02:24]}  d4 {[%clk 0:02:02]} 16. Bxf6 {[%clk 0:02:23]}  exf6 {[%clk 0:01:52]} 17. Ne4 {[%clk 0:02:22]}  Be6 {[%clk 0:01:47]} 18. Qc2 {[%clk 0:02:06]}  Bd5 {[%clk 0:01:44]} 19. Nfd2 {[%clk 0:02:03]}  f5 {[%clk 0:01:38]} 20. Nc5 {[%clk 0:01:57]}  Bxg2 {[%clk 0:01:38]} 21. Kxg2 {[%clk 0:01:58]}  Qd5+ {[%clk 0:01:38]} 22. Nf3 {[%clk 0:01:56]}  Rfc8 {[%clk 0:01:35]} 23. Rfc1 {[%clk 0:01:49]}  Bh6 {[%clk 0:01:27]} 24. Rd1 {[%clk 0:01:41]}  Nxb4 {[%clk 0:01:04]} 25. Rxb4 {[%clk 0:01:42]}  Rxc5 {[%clk 0:01:02]} 26. Qb3 {[%clk 0:01:36]}  Qxb3 {[%clk 0:00:57]} 27. Rxb3 {[%clk 0:01:37]}  Bg7 {[%clk 0:00:56]} 28. Rdb1 {[%clk 0:01:37]}  h6 {[%clk 0:00:51]} 29. Rb4 {[%clk 0:01:37]}  Rd5 {[%clk 0:00:50]} 30. h4 {[%clk 0:01:37]}  Kh7 {[%clk 0:00:49]} 31. Kf1 {[%clk 0:01:37]}  Bf6 {[%clk 0:00:47]} 32. Rc1 {[%clk 0:01:27]}  g5 {[%clk 0:00:43]} 33. hxg5 {[%clk 0:01:26]}  hxg5 {[%clk 0:00:42]} 34. Rc6 {[%clk 0:01:26]}  Kg7 {[%clk 0:00:37]} 35. Kg2 {[%clk 0:01:08]}  g4 {[%clk 0:00:36]} 36. Ne1 {[%clk 0:01:00]}  Be7 {[%clk 0:00:34]} 37. Rb3 {[%clk 0:00:59]}  Re5 {[%clk 0:00:33]} 38. Nc2 {[%clk 0:00:58]}  Rd8 {[%clk 0:00:30]} 39. e3 {[%clk 0:00:56]}  dxe3 {[%clk 0:00:27]} 40. fxe3 {[%clk 0:00:55]}  Red5 {[%clk 0:00:23]} 41. d4 {[%clk 0:00:44]}  b4 {[%clk 0:00:23]} 42. Kf2 {[%clk 0:00:32]}  Ra5 {[%clk 0:00:23]} 43. Ke2 {[%clk 0:00:17]}  Rh8 {[%clk 0:00:20]} 44. Kd3 {[%clk 0:00:16]}  Rh3 {[%clk 0:00:20]} 45. Rc7 {[%clk 0:00:14]}  Bf8 {[%clk 0:00:20]} 46. Rd7 {[%clk 0:00:14]}  Rxg3 {[%clk 0:00:19]} 47. d5 {[%clk 0:00:14]}  f4 {[%clk 0:00:19]} 48. Ke4 {[%clk 0:00:14]}  f3 {[%clk 0:00:19]} 49. Nd4 {[%clk 0:00:15]}  Kg6 {[%clk 0:00:14]} 50. Nf5 {[%clk 0:00:15]}  Rg1 {[%clk 0:00:14]} 51. Rb2 {[%clk 0:00:10]}  b3 {[%clk 0:00:13]} 52. Kf4 {[%clk 0:00:06]}  Ra4+ {[%clk 0:00:10]} 53. e4 {[%clk 0:00:06]}  Ra2 {[%clk 0:00:05]} 54. Rxb3 {[%clk 0:00:04]}  f2 {[%clk 0:00:05]} 55. Rb6+ {[%clk 0:00:04]}  Kh7 {[%clk 0:00:04]} 56. Rxf7+ {[%clk 0:00:01]}  Kg8 {[%clk 0:00:05]} 57. Rxf8+ {[%clk 0:00:02]}  Kxf8 {[%clk 0:00:05]} 58. Rb8+ {[%clk 0:00:01]}  Kf7 {[%clk 0:00:05]} 59. Rb7+ {[%clk 0:00:02]}  Ke8 {[%clk 0:00:05]} 60. Nd6+ {[%clk 0:00:02]}  Kd8 {[%clk 0:00:05]} 61. Nf7+ {[%clk 0:00:02]}  Ke8 {[%clk 0:00:06]} 62. Nd6+ {[%clk 0:00:03]}  Kf8 {[%clk 0:00:06]} 63. Rb8+ {[%clk 0:00:02]}  Ke7 {[%clk 0:00:06]} 64. Nf5+ {[%clk 0:00:03]}  Kd7 {[%clk 0:00:06]} 65. Rb7+ {[%clk 0:00:03]}  Kd8 {[%clk 0:00:06]} 66. Ne3 {[%clk 0:00:01]}  f1=Q+ {[%clk 0:00:06]} 67. Nxf1 {[%clk 0:00:01]}  Rxf1+ {[%clk 0:00:06]} 68. Ke5 {[%clk 0:00:02]}  g3 {[%clk 0:00:06]} 69. Rb8+ {[%clk 0:00:01]}  Kc7 {[%clk 0:00:06]} 70. Rg8 {[%clk 0:00:01]}  g2 {[%clk 0:00:06]} 71. Ke6 {[%clk 0:00:01]}  g1=Q {[%clk 0:00:07]} 72. d6+ {[%clk 0:00:02]}  Kb7 {[%clk 0:00:06]} 73. Rxg1 {[%clk 0:00:02]}  Rxg1 {[%clk 0:00:07]} 74. d7 {[%clk 0:00:02]}  Kc7 {[%clk 0:00:07]} 75. Ke7 {[%clk 0:00:03]}  Rg8 {[%clk 0:00:08]} 76. e5 {[%clk 0:00:01]}  Rg7+ {[%clk 0:00:04]} 0-1


[Site "https://www.chess.com"]

[Event "Titled Tuesday Blitz October 31 Late 2023"]
[White "Wu, Derek"]
[Black "Mahdavi, Reza"]
[WhiteFideId "30914558"]
[BlackFideId "12595926"]
[WhiteElo "2675"]
[BlackElo "2937"]
[Result "1/2-1/2"]
[Round "3"]
[TimeControl "180+1"]
[Date "2023.10.31"]
[WhiteClock "0:00:06"]
[BlackClock "0:00:05"]
[Board "14"]

1. b3 {[%clk 0:03:00]}  Nf6 {[%clk 0:02:57]} 2. Bb2 {[%clk 0:03:01]}  e6 {[%clk 0:02:58]} 3. Nf3 {[%clk 0:02:58]}  d5 {[%clk 0:02:59]} 4. e3 {[%clk 0:02:56]}  c5 {[%clk 0:02:56]} 5. c4 {[%clk 0:02:55]}  Nc6 {[%clk 0:02:51]} 6. cxd5 {[%clk 0:02:55]}  exd5 {[%clk 0:02:52]} 7. d4 {[%clk 0:02:53]}  cxd4 {[%clk 0:02:53]} 8. Nxd4 {[%clk 0:02:52]}  Bb4+ {[%clk 0:02:53]} 9. Bc3 {[%clk 0:02:48]}  Qa5 {[%clk 0:02:51]} 10. Bxb4 {[%clk 0:02:27]}  Nxb4 {[%clk 0:02:46]} 11. Bb5+ {[%clk 0:02:24]}  Bd7 {[%clk 0:02:39]} 12. Bxd7+ {[%clk 0:02:23]}  Nxd7 {[%clk 0:02:40]} 13. O-O {[%clk 0:02:22]}  O-O {[%clk 0:02:41]} 14. Qd2 {[%clk 0:01:58]}  Qb6 {[%clk 0:02:34]} 15. Nc3 {[%clk 0:01:56]}  Nf6 {[%clk 0:02:29]} 16. Rac1 {[%clk 0:01:48]}  Nc6 {[%clk 0:02:01]} 17. Rfd1 {[%clk 0:01:41]}  Ne7 {[%clk 0:01:57]} 18. h3 {[%clk 0:01:36]}  Rac8 {[%clk 0:01:57]} 19. Na4 {[%clk 0:01:27]}  Qd6 {[%clk 0:01:57]} 20. Qa5 {[%clk 0:01:25]}  a6 {[%clk 0:01:56]} 21. Qb6 {[%clk 0:01:24]}  Rxc1 {[%clk 0:01:45]} 22. Rxc1 {[%clk 0:01:12]}  Qa3 {[%clk 0:01:45]} 23. Rc7 {[%clk 0:01:08]}  Ng6 {[%clk 0:01:41]} 24. Qxb7 {[%clk 0:01:02]}  Qxa2 {[%clk 0:01:34]} 25. Qxa6 {[%clk 0:01:02]}  Ne4 {[%clk 0:01:31]} 26. Qe2 {[%clk 0:00:55]}  Qa1+ {[%clk 0:01:18]} 27. Kh2 {[%clk 0:00:52]}  Qa3 {[%clk 0:01:19]} 28. Qc2 {[%clk 0:00:43]}  h6 {[%clk 0:01:13]} 29. Nf5 {[%clk 0:00:36]}  Qa1 {[%clk 0:01:01]} 30. Qb2 {[%clk 0:00:34]}  Qxb2 {[%clk 0:01:01]} 31. Nxb2 {[%clk 0:00:35]}  Rb8 {[%clk 0:01:01]} 32. Na4 {[%clk 0:00:20]}  Rxb3 {[%clk 0:00:59]} 33. Rc8+ {[%clk 0:00:19]}  Kh7 {[%clk 0:00:59]} 34. Rc7 {[%clk 0:00:19]}  Kg8 {[%clk 0:00:50]} 35. f3 {[%clk 0:00:18]}  Nf6 {[%clk 0:00:44]} 36. Nc5 {[%clk 0:00:16]}  Rc3 {[%clk 0:00:43]} 37. Na6 {[%clk 0:00:17]}  Rb3 {[%clk 0:00:39]} 38. Rc8+ {[%clk 0:00:16]}  Kh7 {[%clk 0:00:39]} 39. Rc7 {[%clk 0:00:17]}  Nh8 {[%clk 0:00:37]} 40. Nc5 {[%clk 0:00:15]}  Rb2 {[%clk 0:00:35]} 41. Nd6 {[%clk 0:00:14]}  Rc2 {[%clk 0:00:32]} 42. Na6 {[%clk 0:00:14]}  Ra2 {[%clk 0:00:30]} 43. Nb4 {[%clk 0:00:14]}  Rb2 {[%clk 0:00:27]} 44. Nd3 {[%clk 0:00:14]}  Rb3 {[%clk 0:00:27]} 45. Ne5 {[%clk 0:00:13]}  Rxe3 {[%clk 0:00:27]} 46. Nexf7 {[%clk 0:00:13]}  Nxf7 {[%clk 0:00:28]} 47. Nxf7 {[%clk 0:00:14]}  Re6 {[%clk 0:00:23]} 48. Nd8 {[%clk 0:00:10]}  Re8 {[%clk 0:00:17]} 49. Nc6 {[%clk 0:00:10]}  Re2 {[%clk 0:00:17]} 50. Nd4 {[%clk 0:00:10]}  Re5 {[%clk 0:00:13]} 51. f4 {[%clk 0:00:09]}  Re4 {[%clk 0:00:14]} 52. Nf5 {[%clk 0:00:10]}  Ne8 {[%clk 0:00:14]} 53. Rd7 {[%clk 0:00:10]}  Rxf4 {[%clk 0:00:11]} 54. Rxd5 {[%clk 0:00:10]}  Nf6 {[%clk 0:00:12]} 55. Ra5 {[%clk 0:00:10]}  Rf2 {[%clk 0:00:12]} 56. Kg3 {[%clk 0:00:10]}  Ne4+ {[%clk 0:00:12]} 57. Kh2 {[%clk 0:00:10]}  Ng5 {[%clk 0:00:13]} 58. Kg3 {[%clk 0:00:08]}  Rf1 {[%clk 0:00:13]} 59. Ne3 {[%clk 0:00:08]}  Ne4+ {[%clk 0:00:13]} 60. Kh2 {[%clk 0:00:08]}  Rf7 {[%clk 0:00:14]} 61. Ra4 {[%clk 0:00:08]}  Ng5 {[%clk 0:00:13]} 62. Rg4 {[%clk 0:00:08]}  Re7 {[%clk 0:00:14]} 63. Nf5 {[%clk 0:00:08]}  Rb7 {[%clk 0:00:14]} 64. Ng3 {[%clk 0:00:09]}  Ne6 {[%clk 0:00:13]} 65. h4 {[%clk 0:00:09]}  Nf8 {[%clk 0:00:13]} 66. Rc4 {[%clk 0:00:09]}  Nd7 {[%clk 0:00:13]} 67. Ra4 {[%clk 0:00:09]}  Nf6 {[%clk 0:00:13]} 68. Ra5 {[%clk 0:00:09]}  Rb4 {[%clk 0:00:13]} 69. Kh3 {[%clk 0:00:09]}  Rb1 {[%clk 0:00:13]} 70. Ra7 {[%clk 0:00:09]}  Kg6 {[%clk 0:00:12]} 71. h5+ {[%clk 0:00:08]}  Kh7 {[%clk 0:00:12]} 72. Nf5 {[%clk 0:00:08]}  Rh1+ {[%clk 0:00:08]} 73. Kg3 {[%clk 0:00:07]}  Rxh5 {[%clk 0:00:07]} 74. Ne3 {[%clk 0:00:06]}  Rg5+ {[%clk 0:00:06]} 75. Kf3 {[%clk 0:00:06]}  Rb5 {[%clk 0:00:06]} 76. g4 {[%clk 0:00:06]}  Rb3 {[%clk 0:00:06]} 77. Kf4 {[%clk 0:00:06]}  Rb4+ {[%clk 0:00:07]} 78. Kf3 {[%clk 0:00:07]}  Kg6 {[%clk 0:00:07]} 79. Nf5 {[%clk 0:00:06]}  Nxg4 {[%clk 0:00:06]} 80. Nxg7 {[%clk 0:00:06]}  Ne5+ {[%clk 0:00:05]} 81. Kg3 {[%clk 0:00:06]}  Rb3+ {[%clk 0:00:04]} 82. Kh4 {[%clk 0:00:04]}  Nf3+ {[%clk 0:00:03]} 83. Kg4 {[%clk 0:00:05]}  Ng5 {[%clk 0:00:03]} 84. Nh5 {[%clk 0:00:04]}  Rb4+ {[%clk 0:00:03]} 85. Nf4+ {[%clk 0:00:05]}  Kf6 {[%clk 0:00:03]} 86. Ra6+ {[%clk 0:00:05]}  Kf7 {[%clk 0:00:04]} 87. Rxh6 {[%clk 0:00:05]}  Ne4 {[%clk 0:00:03]} 88. Kf5 {[%clk 0:00:05]}  Ng3+ {[%clk 0:00:03]} 89. Kg4 {[%clk 0:00:06]}  Ne2 {[%clk 0:00:03]} 90. Rh7+ {[%clk 0:00:05]}  Kg8 {[%clk 0:00:04]} 91. Rc7 {[%clk 0:00:05]}  Nxf4 {[%clk 0:00:04]} 92. Kf3 {[%clk 0:00:05]}  Ng6 {[%clk 0:00:04]} 93. Ra7 {[%clk 0:00:05]}  Nf8 {[%clk 0:00:04]} 94. Ke3 {[%clk 0:00:06]}  Rg4 {[%clk 0:00:04]} 95. Kf3 {[%clk 0:00:06]}  Rb4 {[%clk 0:00:04]} 96. Ke3 {[%clk 0:00:07]}  Ng6 {[%clk 0:00:04]} 97. Kf3 {[%clk 0:00:07]}  Kf8 {[%clk 0:00:05]} 98. Ke3 {[%clk 0:00:08]}  Ne7 {[%clk 0:00:05]} 99. Kf3 {[%clk 0:00:08]}  Kf7 {[%clk 0:00:06]} 100. Rc7 {[%clk 0:00:09]}  Ke6 {[%clk 0:00:06]} 101. Ra7 {[%clk 0:00:09]}  Nd5 {[%clk 0:00:06]} 102. Kg3 {[%clk 0:00:09]}  Ke5 {[%clk 0:00:06]} 103. Ra6 {[%clk 0:00:09]}  Rb8 {[%clk 0:00:06]} 104. Kg4 {[%clk 0:00:09]}  Rg8+ {[%clk 0:00:07]} 105. Kf3 {[%clk 0:00:10]}  Rf8+ {[%clk 0:00:07]} 106. Kg4 {[%clk 0:00:10]}  Ne3+ {[%clk 0:00:07]} 107. Kg3 {[%clk 0:00:11]}  Nf5+ {[%clk 0:00:06]} 108. Kg4 {[%clk 0:00:11]}  Nd4 {[%clk 0:00:07]} 109. Ra5+ {[%clk 0:00:11]}  Ke4 {[%clk 0:00:07]} 110. Ra7 {[%clk 0:00:11]}  Rg8+ {[%clk 0:00:07]} 111. Kh5 {[%clk 0:00:12]}  Kf4 {[%clk 0:00:07]} 112. Kh6 {[%clk 0:00:11]}  Kf5 {[%clk 0:00:06]} 113. Kh7 {[%clk 0:00:11]}  Rg1 {[%clk 0:00:06]} 114. Rg7 {[%clk 0:00:11]}  Re1 {[%clk 0:00:06]} 115. Kg8 {[%clk 0:00:12]}  Ne6 {[%clk 0:00:05]} 116. Rf7+ {[%clk 0:00:12]}  Kg6 {[%clk 0:00:06]} 117. Rf2 {[%clk 0:00:10]}  Rb1 {[%clk 0:00:06]} 118. Rg2+ {[%clk 0:00:10]}  Kf6 {[%clk 0:00:07]} 119. Rf2+ {[%clk 0:00:09]}  Ke7 {[%clk 0:00:07]} 120. Kh7 {[%clk 0:00:09]}  Rg1 {[%clk 0:00:08]} 121. Ra2 {[%clk 0:00:08]}  Nf8+ {[%clk 0:00:06]} 122. Kh6 {[%clk 0:00:08]}  Nd7 {[%clk 0:00:06]} 123. Kh5 {[%clk 0:00:08]}  Kf6 {[%clk 0:00:06]} 124. Kh4 {[%clk 0:00:09]}  Ne5 {[%clk 0:00:07]} 125. Kh3 {[%clk 0:00:09]}  Kf5 {[%clk 0:00:08]} 126. Kh2 {[%clk 0:00:09]}  Rg7 {[%clk 0:00:07]} 127. Rf2+ {[%clk 0:00:10]}  Ke4 {[%clk 0:00:08]} 128. Rg2 {[%clk 0:00:10]}  Nf3+ {[%clk 0:00:08]} 129. Kh3 {[%clk 0:00:09]}  Rh7+ {[%clk 0:00:08]} 130. Kg3 {[%clk 0:00:09]}  Ke3 {[%clk 0:00:09]} 131. Ra2 {[%clk 0:00:08]}  Rg7+ {[%clk 0:00:09]} 132. Kh3 {[%clk 0:00:08]}  Ng1+ {[%clk 0:00:09]} 133. Kh4 {[%clk 0:00:08]}  Ne2 {[%clk 0:00:08]} 134. Ra3+ {[%clk 0:00:07]}  Ke4 {[%clk 0:00:08]} 135. Kh5 {[%clk 0:00:07]}  Nd4 {[%clk 0:00:07]} 136. Kh6 {[%clk 0:00:06]}  Nf5+ {[%clk 0:00:08]} 137. Kh5 {[%clk 0:00:05]}  Ne7 {[%clk 0:00:05]} 138. Ra4+ {[%clk 0:00:05]}  Ke5 {[%clk 0:00:05]} 139. Ra5+ {[%clk 0:00:05]}  Nd5 {[%clk 0:00:06]} 140. Kh6 {[%clk 0:00:06]}  Rg2 {[%clk 0:00:06]} 141. Ra1 {[%clk 0:00:06]}  Nf4 {[%clk 0:00:05]} 1/2-1/2


[Site "https://www.chess.com"]

[Event "Titled Tuesday Blitz October 31 Late 2023"]
[White "Ibarra Jerez, Jose Carlos"]
[Black "Al-Tarboush, Ward"]
[WhiteFideId "2226332"]
[BlackFideId "7601450"]
[WhiteElo "2914"]
[BlackElo "2659"]
[Result "1-0"]
[Round "3"]
[TimeControl "180+1"]
[Date "2023.10.31"]
[WhiteClock "0:01:14"]
[BlackClock "0:00:22"]
[Board "16"]

1. e4 {[%clk 0:03:00]}  c5 {[%clk 0:03:00]} 2. Nf3 {[%clk 0:03:00]}  e6 {[%clk 0:03:00]} 3. d3 {[%clk 0:03:00]}  Nc6 {[%clk 0:02:59]} 4. g3 {[%clk 0:03:00]}  d6 {[%clk 0:02:57]} 5. Bg2 {[%clk 0:03:00]}  Nf6 {[%clk 0:02:58]} 6. O-O {[%clk 0:03:00]}  Be7 {[%clk 0:02:59]} 7. c3 {[%clk 0:02:59]}  O-O {[%clk 0:02:55]} 8. Re1 {[%clk 0:03:00]}  Bd7 {[%clk 0:02:50]} 9. Na3 {[%clk 0:02:59]}  a6 {[%clk 0:02:50]} 10. e5 {[%clk 0:02:58]}  dxe5 {[%clk 0:02:47]} 11. Nc4 {[%clk 0:02:58]}  Rc8 {[%clk 0:02:44]} 12. Ncxe5 {[%clk 0:02:57]}  b5 {[%clk 0:02:43]} 13. Qe2 {[%clk 0:02:50]}  Be8 {[%clk 0:02:28]} 14. Bd2 {[%clk 0:02:45]}  Qd6 {[%clk 0:02:17]} 15. Bf4 {[%clk 0:02:36]}  Nd5 {[%clk 0:02:05]} 16. Bd2 {[%clk 0:02:31]}  Bf6 {[%clk 0:01:58]} 17. Ng4 {[%clk 0:02:30]}  Be7 {[%clk 0:01:47]} 18. Rad1 {[%clk 0:02:30]}  Nd8 {[%clk 0:01:33]} 19. h4 {[%clk 0:02:25]}  Bc6 {[%clk 0:01:32]} 20. h5 {[%clk 0:02:22]}  h6 {[%clk 0:01:30]} 21. Nfe5 {[%clk 0:02:17]}  Ba8 {[%clk 0:01:27]} 22. Nxh6+ {[%clk 0:01:58]}  gxh6 {[%clk 0:01:23]} 23. Bxh6 {[%clk 0:01:59]}  Nf6 {[%clk 0:01:03]} 24. Bxa8 {[%clk 0:01:57]}  Rxa8 {[%clk 0:01:02]} 25. Bxf8 {[%clk 0:01:58]}  Bxf8 {[%clk 0:01:02]} 26. Qf3 {[%clk 0:01:56]}  Nd5 {[%clk 0:00:56]} 27. c4 {[%clk 0:01:54]}  Nc7 {[%clk 0:00:53]} 28. d4 {[%clk 0:01:51]}  cxd4 {[%clk 0:00:44]} 29. Qg4+ {[%clk 0:01:50]}  Kh8 {[%clk 0:00:43]} 30. Rxd4 {[%clk 0:01:51]}  Qe7 {[%clk 0:00:43]} 31. Rd7 {[%clk 0:01:42]}  Qf6 {[%clk 0:00:40]} 32. Qf4 {[%clk 0:01:17]}  Qxf4 {[%clk 0:00:35]} 33. gxf4 {[%clk 0:01:17]}  Bb4 {[%clk 0:00:22]} 34. Red1 {[%clk 0:01:14]} 1-0


[Site "https://www.chess.com"]

[Event "Titled Tuesday Blitz October 31 Late 2023"]
[White "Shapiro, Viktor"]
[Black "Asadli, Vugar"]
[WhiteFideId "4175700"]
[BlackFideId "13405764"]
[WhiteElo "2576"]
[BlackElo "2860"]
[Result "0-1"]
[Round "3"]
[TimeControl "180+1"]
[Date "2023.10.31"]
[WhiteClock "0:00:33"]
[BlackClock "0:00:36"]
[Board "23"]

1. c4 {[%clk 0:03:00]}  Nf6 {[%clk 0:02:59]} 2. Nc3 {[%clk 0:03:01]}  g6 {[%clk 0:02:59]} 3. g3 {[%clk 0:03:01]}  Bg7 {[%clk 0:03:00]} 4. Bg2 {[%clk 0:03:02]}  O-O {[%clk 0:03:00]} 5. Nf3 {[%clk 0:03:02]}  d6 {[%clk 0:03:01]} 6. O-O {[%clk 0:03:02]}  e5 {[%clk 0:02:56]} 7. d3 {[%clk 0:03:02]}  Nc6 {[%clk 0:02:55]} 8. Rb1 {[%clk 0:03:02]}  Nd4 {[%clk 0:02:49]} 9. e3 {[%clk 0:02:59]}  Nxf3+ {[%clk 0:02:46]} 10. Bxf3 {[%clk 0:02:59]}  c6 {[%clk 0:02:45]} 11. b4 {[%clk 0:02:59]}  Bh3 {[%clk 0:02:39]} 12. Re1 {[%clk 0:02:59]}  d5 {[%clk 0:02:39]} 13. b5 {[%clk 0:02:55]}  Rc8 {[%clk 0:02:26]} 14. bxc6 {[%clk 0:02:55]}  bxc6 {[%clk 0:02:27]} 15. Ba3 {[%clk 0:02:52]}  Re8 {[%clk 0:02:26]} 16. Qa4 {[%clk 0:02:44]}  e4 {[%clk 0:02:17]} 17. dxe4 {[%clk 0:02:43]}  dxe4 {[%clk 0:02:18]} 18. Red1 {[%clk 0:02:36]}  Qc7 {[%clk 0:02:10]} 19. Bg2 {[%clk 0:02:24]}  Bxg2 {[%clk 0:02:07]} 20. Kxg2 {[%clk 0:02:25]}  Qe5 {[%clk 0:02:06]} 21. Qc2 {[%clk 0:02:10]}  h5 {[%clk 0:01:52]} 22. h3 {[%clk 0:01:43]}  Nh7 {[%clk 0:01:38]} 23. Bb2 {[%clk 0:01:39]}  Qf5 {[%clk 0:01:27]} 24. Ne2 {[%clk 0:01:34]}  Qf3+ {[%clk 0:01:14]} 25. Kg1 {[%clk 0:01:33]}  Ng5 {[%clk 0:01:13]} 26. Nf4 {[%clk 0:01:33]}  Bxb2 {[%clk 0:01:08]} 27. Qxb2 {[%clk 0:01:31]}  h4 {[%clk 0:01:07]} 28. gxh4 {[%clk 0:01:08]}  Nxh3+ {[%clk 0:01:06]} 29. Nxh3 {[%clk 0:01:08]}  Qxh3 {[%clk 0:01:07]} 30. Qf6 {[%clk 0:01:06]}  Re6 {[%clk 0:01:02]} 31. Qg5 {[%clk 0:01:04]}  Kg7 {[%clk 0:00:57]} 32. Rb7 {[%clk 0:01:01]}  Rh8 {[%clk 0:00:54]} 33. Rdd7 {[%clk 0:01:00]}  Rf6 {[%clk 0:00:51]} 34. Qe5 {[%clk 0:00:56]}  Rf8 {[%clk 0:00:37]} 35. Rd6 {[%clk 0:00:46]}  Qxh4 {[%clk 0:00:37]} 36. Rxa7 {[%clk 0:00:37]}  Qxf2+ {[%clk 0:00:35]} 37. Kh1 {[%clk 0:00:33]}  Rh8+ {[%clk 0:00:36]} 0-1


[Site "https://www.chess.com"]

[Event "Titled Tuesday Blitz October 31 Late 2023"]
[White "Roebers, Eline"]
[Black "Kobo, Ori"]
[WhiteFideId "1058401"]
[BlackFideId "2812320"]
[WhiteElo "2567"]
[BlackElo "2812"]
[Result "0-1"]
[Round "3"]
[TimeControl "180+1"]
[Date "2023.10.31"]
[WhiteClock "0:00:05"]
[BlackClock "0:00:07"]
[Board "26"]

1. e4 {[%clk 0:03:00]}  c5 {[%clk 0:03:00]} 2. Nf3 {[%clk 0:03:00]}  d6 {[%clk 0:03:00]} 3. d4 {[%clk 0:03:00]}  cxd4 {[%clk 0:03:01]} 4. Nxd4 {[%clk 0:03:00]}  Nf6 {[%clk 0:03:01]} 5. Nc3 {[%clk 0:03:01]}  Nc6 {[%clk 0:03:02]} 6. Nd5 {[%clk 0:03:01]}  Nxd5 {[%clk 0:02:59]} 7. exd5 {[%clk 0:03:02]}  Qa5+ {[%clk 0:02:59]} 8. Bd2 {[%clk 0:03:02]}  Qxd5 {[%clk 0:02:57]} 9. Nb5 {[%clk 0:03:02]}  Qe6+ {[%clk 0:02:56]} 10. Be2 {[%clk 0:03:02]}  Qd7 {[%clk 0:02:57]} 11. c4 {[%clk 0:03:02]}  a6 {[%clk 0:02:53]} 12. Nc3 {[%clk 0:03:02]}  e6 {[%clk 0:02:53]} 13. Be3 {[%clk 0:03:01]}  Be7 {[%clk 0:02:52]} 14. O-O {[%clk 0:03:00]}  O-O {[%clk 0:02:52]} 15. f4 {[%clk 0:02:57]}  Rb8 {[%clk 0:02:44]} 16. Qd2 {[%clk 0:02:55]}  Qc7 {[%clk 0:02:37]} 17. Rac1 {[%clk 0:02:50]}  Qa5 {[%clk 0:02:31]} 18. Bf3 {[%clk 0:02:40]}  Bd7 {[%clk 0:02:29]} 19. Rfd1 {[%clk 0:02:30]}  Rfd8 {[%clk 0:01:50]} 20. a4 {[%clk 0:02:12]}  Bf8 {[%clk 0:01:45]} 21. Qf2 {[%clk 0:02:08]}  Rdc8 {[%clk 0:01:32]} 22. Ne4 {[%clk 0:01:58]}  Qxa4 {[%clk 0:01:24]} 23. Nxd6 {[%clk 0:01:56]}  Bxd6 {[%clk 0:01:24]} 24. Rxd6 {[%clk 0:01:56]}  Be8 {[%clk 0:01:23]} 25. Bb6 {[%clk 0:01:48]}  Ne7 {[%clk 0:01:15]} 26. Bd1 {[%clk 0:01:39]}  Qb4 {[%clk 0:01:15]} 27. Rd3 {[%clk 0:01:22]}  Nd5 {[%clk 0:00:53]} 28. Rb3 {[%clk 0:01:18]}  Qd6 {[%clk 0:00:42]} 29. Ba7 {[%clk 0:01:18]}  Ra8 {[%clk 0:00:37]} 30. g3 {[%clk 0:01:15]}  Nf6 {[%clk 0:00:27]} 31. Be3 {[%clk 0:01:12]}  Bc6 {[%clk 0:00:26]} 32. Bc2 {[%clk 0:01:06]}  Rd8 {[%clk 0:00:24]} 33. Bb6 {[%clk 0:01:02]}  Rd7 {[%clk 0:00:24]} 34. Rd3 {[%clk 0:01:00]}  Qe7 {[%clk 0:00:25]} 35. Rcd1 {[%clk 0:00:59]}  Rxd3 {[%clk 0:00:24]} 36. Bxd3 {[%clk 0:00:58]}  h6 {[%clk 0:00:23]} 37. Bc5 {[%clk 0:00:33]}  Qe8 {[%clk 0:00:23]} 38. Bb6 {[%clk 0:00:31]}  Rc8 {[%clk 0:00:23]} 39. Qe3 {[%clk 0:00:25]}  Ba4 {[%clk 0:00:18]} 40. Rc1 {[%clk 0:00:20]}  Qc6 {[%clk 0:00:15]} 41. Bd4 {[%clk 0:00:18]}  Qd7 {[%clk 0:00:12]} 42. Bc3 {[%clk 0:00:18]}  Ng4 {[%clk 0:00:08]} 43. Qf3 {[%clk 0:00:17]}  f5 {[%clk 0:00:05]} 44. Bb1 {[%clk 0:00:16]}  Bc6 {[%clk 0:00:05]} 45. Qe2 {[%clk 0:00:16]}  Rd8 {[%clk 0:00:05]} 46. Re1 {[%clk 0:00:15]}  Re8 {[%clk 0:00:04]} 47. Bc2 {[%clk 0:00:14]}  Nf6 {[%clk 0:00:04]} 48. Bxf6 {[%clk 0:00:13]}  gxf6 {[%clk 0:00:05]} 49. Qh5 {[%clk 0:00:12]}  Kg7 {[%clk 0:00:06]} 50. Rd1 {[%clk 0:00:11]}  Qf7 {[%clk 0:00:06]} 51. Qe2 {[%clk 0:00:10]}  Re7 {[%clk 0:00:06]} 52. Rd6 {[%clk 0:00:10]}  Qe8 {[%clk 0:00:03]} 53. c5 {[%clk 0:00:08]}  Qf7 {[%clk 0:00:04]} 54. Qd3 {[%clk 0:00:07]}  Bd5 {[%clk 0:00:04]} 55. Qd2 {[%clk 0:00:06]}  Rc7 {[%clk 0:00:04]} 56. b4 {[%clk 0:00:06]}  a5 {[%clk 0:00:04]} 57. Bxf5 {[%clk 0:00:05]}  axb4 {[%clk 0:00:04]} 58. Bg4 {[%clk 0:00:03]}  Rxc5 {[%clk 0:00:04]} 59. Qxb4 {[%clk 0:00:03]}  Qc7 {[%clk 0:00:04]} 60. Qd4 {[%clk 0:00:02]}  Rc1+ {[%clk 0:00:03]} 61. Kf2 {[%clk 0:00:02]}  Qxd6 {[%clk 0:00:04]} 62. Qd2 {[%clk 0:00:02]}  Qc5+ {[%clk 0:00:05]} 63. Qe3 {[%clk 0:00:02]}  Rc2+ {[%clk 0:00:05]} 64. Be2 {[%clk 0:00:01]}  Qxe3+ {[%clk 0:00:05]} 65. Kxe3 {[%clk 0:00:02]}  Rxe2+ {[%clk 0:00:06]} 66. Kxe2 {[%clk 0:00:01]}  b5 {[%clk 0:00:07]} 67. Kd3 {[%clk 0:00:02]}  f5 {[%clk 0:00:07]} 68. Kd4 {[%clk 0:00:03]}  Bc4 {[%clk 0:00:08]} 69. Kc5 {[%clk 0:00:04]}  Kf6 {[%clk 0:00:07]} 70. Kb4 {[%clk 0:00:05]} 0-1


[Site "https://www.chess.com"]